[Event "*** SCC Grand Prix: Titled Tuesday Blitz"]
[Site "Chess.com"]
[Date "2020.07.07"]
[Round "2"]
[White "whodee11"]
[Black "vpsetter"]
[Result "0-1"]
[WhiteElo "2317"]
[BlackElo "2619"]
[TimeControl "180+1"]
[EndTime "10:17:58 PDT"]
[Termination "vpsetter won by resignation"]

1. e4 {[%clk 0:02:40.9]} 1... c5 {[%clk 0:02:58.9]} 2. Nc3 {[%clk 0:02:40.7]}
2... Nc6 {[%clk 0:02:58.4]} 3. Bc4 {[%clk 0:02:41.1]} 3... e6 {[%clk 0:02:58.3]}
4. f4 {[%clk 0:02:41.3]} 4... Nge7 {[%clk 0:02:58]} 5. d3 {[%clk 0:02:41.1]}
5... d5 {[%clk 0:02:56.7]} 6. Bb3 {[%clk 0:02:42]} 6... a6 {[%clk 0:02:38.6]} 7.
a3 {[%clk 0:02:38.1]} 7... b5 {[%clk 0:02:37.5]} 8. Nf3 {[%clk 0:02:38]} 8... c4
{[%clk 0:02:36]} 9. Ba2 {[%clk 0:02:37.9]} 9... dxe4 {[%clk 0:02:23.4]} 10. Nxe4
{[%clk 0:02:37.3]} 10... cxd3 {[%clk 0:02:20.5]} 11. cxd3 {[%clk 0:02:38.2]}
11... Nf5 {[%clk 0:02:16.6]} 12. O-O {[%clk 0:02:37.9]} 12... Be7 {[%clk
0:02:08]} 13. g4 {[%clk 0:02:37.8]} 13... Nfd4 {[%clk 0:02:07.6]} 14. Be3 {[%clk
0:02:31.4]} 14... O-O {[%clk 0:02:05]} 15. Rc1 {[%clk 0:02:29.9]} 15... Bb7
{[%clk 0:02:01]} 16. Nc5 {[%clk 0:02:29.8]} 16... Bxc5 {[%clk 0:01:50.8]} 17.
Rxc5 {[%clk 0:02:30.7]} 17... Qd6 {[%clk 0:01:46.8]} 18. Rh5 {[%clk 0:02:23.6]}
18... Rfd8 {[%clk 0:01:00.2]} 19. Ng5 {[%clk 0:02:22.4]} 19... h6 {[%clk
0:00:55.5]} 20. Ne4 {[%clk 0:02:22.1]} 20... Qe7 {[%clk 0:00:45.6]} 21. g5
{[%clk 0:02:21.4]} 21... Nf5 {[%clk 0:00:39.4]} 22. Bc5 {[%clk 0:02:16.3]} 22...
Qc7 {[%clk 0:00:27.7]} 23. gxh6 {[%clk 0:02:15.3]} 23... g6 {[%clk 0:00:16.4]}
24. Qg4 {[%clk 0:02:03.2]} 24... Kh8 {[%clk 0:00:09.1]} 25. Ng5 {[%clk
0:01:51.3]} 25... Ncd4 {[%clk 0:00:05.4]} 26. Bxd4+ {[%clk 0:01:38.6]} 26...
Rxd4 {[%clk 0:00:04.8]} 27. Bxe6 {[%clk 0:01:33.6]} 27... fxe6 {[%clk
0:00:02.9]} 28. Nxe6 {[%clk 0:01:34.5]} 28... Qf7 {[%clk 0:00:02.7]} 29. Nxd4
{[%clk 0:01:32.3]} 29... Ne3 {[%clk 0:00:03.3]} 30. Qg5 {[%clk 0:01:24.4]} 30...
gxh5 {[%clk 0:00:03.3]} 31. Qe5+ {[%clk 0:01:25.3]} 31... Kh7 {[%clk 0:00:03.9]}
32. Rf2 {[%clk 0:01:20.5]} 32... Rg8+ {[%clk 0:00:03.7]} 33. Qg5 {[%clk
0:01:17.5]} 33... Rxg5+ {[%clk 0:00:04.2]} 34. fxg5 {[%clk 0:01:18.4]} 34... Qd5
{[%clk 0:00:04.8]} 35. Nf3 {[%clk 0:01:14.6]} 35... Qf5 {[%clk 0:00:04.4]} 36.
g6+ {[%clk 0:01:11.1]} 36... Qxg6+ {[%clk 0:00:04.2]} 0-1

[Event "*** SCC Grand Prix: Titled Tuesday Blitz"]
[Site "Chess.com"]
[Date "2020.07.07"]
[Round "2"]
[White "PauloCesarCosta_sad"]
[Black "attack2mateU"]
[Result "0-1"]
[WhiteElo "2224"]
[BlackElo "2629"]
[TimeControl "180+1"]
[EndTime "10:17:59 PDT"]
[Termination "attack2mateU won on time"]

1. Nf3 {[%clk 0:03:00.9]} 1... Nf6 {[%clk 0:02:59.5]} 2. c4 {[%clk 0:03:00.5]}
2... g6 {[%clk 0:02:57.4]} 3. d4 {[%clk 0:02:59.2]} 3... Bg7 {[%clk 0:02:56.9]}
4. Nc3 {[%clk 0:02:58.7]} 4... d5 {[%clk 0:02:57.5]} 5. cxd5 {[%clk 0:02:57.6]}
5... Nxd5 {[%clk 0:02:58.4]} 6. e4 {[%clk 0:02:57.4]} 6... Nxc3 {[%clk
0:02:58.3]} 7. bxc3 {[%clk 0:02:58.3]} 7... c5 {[%clk 0:02:58.6]} 8. Be3 {[%clk
0:02:55.6]} 8... Qa5 {[%clk 0:02:56.7]} 9. Qd2 {[%clk 0:02:25.8]} 9... O-O
{[%clk 0:02:55.1]} 10. Rc1 {[%clk 0:02:17]} 10... Rd8 {[%clk 0:02:54.2]} 11. Be2
{[%clk 0:02:02]} 11... Bg4 {[%clk 0:02:49.7]} 12. d5 {[%clk 0:01:53.4]} 12... c4
{[%clk 0:02:49.2]} 13. O-O {[%clk 0:01:48.3]} 13... Bxf3 {[%clk 0:02:46.5]} 14.
Bxf3 {[%clk 0:01:47.4]} 14... Nd7 {[%clk 0:02:46.5]} 15. Rfd1 {[%clk 0:01:37.8]}
15... Nc5 {[%clk 0:02:44.2]} 16. Rb1 {[%clk 0:01:21.3]} 16... Rac8 {[%clk
0:01:56.4]} 17. Bd4 {[%clk 0:01:05.3]} 17... Bxd4 {[%clk 0:01:21.1]} 18. Qxd4
{[%clk 0:01:05.3]} 18... b5 {[%clk 0:01:16.4]} 19. e5 {[%clk 0:00:58.9]} 19...
Na4 {[%clk 0:01:12.1]} 20. Rbc1 {[%clk 0:00:52.1]} 20... Qb6 {[%clk 0:01:10.9]}
21. Qxb6 {[%clk 0:00:44.7]} 21... Nxb6 {[%clk 0:01:10.1]} 22. d6 {[%clk
0:00:45.6]} 22... exd6 {[%clk 0:01:09.5]} 23. exd6 {[%clk 0:00:34.2]} 23... Kf8
{[%clk 0:01:00.7]} 24. Bb7 {[%clk 0:00:26.7]} 24... Rc5 {[%clk 0:01:00.1]} 25.
Kf1 {[%clk 0:00:21.2]} 25... Rd7 {[%clk 0:00:57.2]} 26. Bf3 {[%clk 0:00:17.5]}
26... Nc8 {[%clk 0:00:56.9]} 27. Rd5 {[%clk 0:00:12]} 27... Rxd5 {[%clk
0:00:55.6]} 28. Bxd5 {[%clk 0:00:12.1]} 28... Rxd6 {[%clk 0:00:56.2]} 29. Bb7
{[%clk 0:00:10.8]} 29... Nb6 {[%clk 0:00:53.7]} 30. f3 {[%clk 0:00:08.3]} 30...
Na4 {[%clk 0:00:53.4]} 31. Be4 {[%clk 0:00:05.6]} 31... Rd2 {[%clk 0:00:52.3]}
32. h3 {[%clk 0:00:02.6]} 32... Rxa2 {[%clk 0:00:51.5]} 33. Bc6 {[%clk
0:00:03.5]} 33... a6 {[%clk 0:00:51.5]} 34. Rd1 {[%clk 0:00:02.8]} 34... Nxc3
{[%clk 0:00:51.4]} 35. Rd8+ {[%clk 0:00:02.7]} 35... Kg7 {[%clk 0:00:51.9]} 36.
Rd7 {[%clk 0:00:01.8]} 36... b4 {[%clk 0:00:50.3]} 37. Be4 {[%clk 0:00:01.3]}
37... Nxe4 {[%clk 0:00:49.7]} 38. fxe4 {[%clk 0:00:01.5]} 38... b3 {[%clk
0:00:50.1]} 39. Rc7 {[%clk 0:00:01.4]} 39... b2 {[%clk 0:00:50.3]} 0-1

[Event "*** SCC Grand Prix: Titled Tuesday Blitz"]
[Site "Chess.com"]
[Date "2020.07.07"]
[Round "2"]
[White "Nf3c5"]
[Black "PowerThinking2650"]
[Result "1-0"]
[WhiteElo "2611"]
[BlackElo "2315"]
[TimeControl "180+1"]
[EndTime "10:17:59 PDT"]
[Termination "Nf3c5 won on time"]

1. e4 {[%clk 0:03:00.8]} 1... e5 {[%clk 0:02:59.1]} 2. Bc4 {[%clk 0:02:59.7]}
2... Nf6 {[%clk 0:02:58.2]} 3. d3 {[%clk 0:02:59.4]} 3... Bc5 {[%clk 0:02:48]}
4. Nc3 {[%clk 0:02:58]} 4... d6 {[%clk 0:02:47.3]} 5. f4 {[%clk 0:02:57.3]} 5...
Nc6 {[%clk 0:02:46]} 6. Nf3 {[%clk 0:02:56.7]} 6... Bg4 {[%clk 0:02:45.8]} 7.
Na4 {[%clk 0:02:52.8]} 7... Bb6 {[%clk 0:02:37.3]} 8. Nxb6 {[%clk 0:02:49.6]}
8... axb6 {[%clk 0:02:38.2]} 9. fxe5 {[%clk 0:02:36.8]} 9... Nxe5 {[%clk
0:02:33.3]} 10. Bb3 {[%clk 0:02:32]} 10... Qe7 {[%clk 0:02:19.2]} 11. O-O {[%clk
0:02:30]} 11... Nxf3+ {[%clk 0:02:15.9]} 12. gxf3 {[%clk 0:02:29.3]} 12... Bh3
{[%clk 0:02:12.5]} 13. Rf2 {[%clk 0:02:27.6]} 13... O-O-O {[%clk 0:02:07.4]} 14.
Kh1 {[%clk 0:01:59.3]} 14... d5 {[%clk 0:02:03.2]} 15. Qg1 {[%clk 0:01:56.2]}
15... dxe4 {[%clk 0:01:56.7]} 16. Qg3 {[%clk 0:01:39.8]} 16... Qd7 {[%clk
0:01:09.3]} 17. Bg5 {[%clk 0:01:04]} 17... exf3 {[%clk 0:01:00.2]} 18. Qxf3
{[%clk 0:00:52.3]} 18... Ng4 {[%clk 0:00:18]} 19. Re2 {[%clk 0:00:42.8]} 19...
Rde8 {[%clk 0:00:16]} 20. Rae1 {[%clk 0:00:42.6]} 20... Rxe2 {[%clk 0:00:07.3]}
21. Rxe2 {[%clk 0:00:41.9]} 21... Nf6 {[%clk 0:00:03.4]} 22. Re3 {[%clk
0:00:32.5]} 22... Bg4 {[%clk 0:00:03]} 23. Qg3 {[%clk 0:00:30.7]} 23... Bf5
{[%clk 0:00:02.1]} 24. Bxf6 {[%clk 0:00:26.2]} 24... gxf6 {[%clk 0:00:01.9]} 25.
Kg1 {[%clk 0:00:25.2]} 1-0

[Event "*** SCC Grand Prix: Titled Tuesday Blitz"]
[Site "Chess.com"]
[Date "2020.07.07"]
[Round "2"]
[White "Luibov_AN"]
[Black "OtherGabe"]
[Result "0-1"]
[WhiteElo "2029"]
[BlackElo "2379"]
[TimeControl "180+1"]
[EndTime "10:17:59 PDT"]
[Termination "OtherGabe won by resignation"]

1. d4 {[%clk 0:03:00.8]} 1... Nf6 {[%clk 0:02:59.5]} 2. Nf3 {[%clk 0:02:57.7]}
2... e6 {[%clk 0:02:55.1]} 3. c4 {[%clk 0:02:53.1]} 3... Bb4+ {[%clk 0:02:52.9]}
4. Nbd2 {[%clk 0:02:49.6]} 4... O-O {[%clk 0:02:32.5]} 5. Qc2 {[%clk 0:02:47.1]}
5... c5 {[%clk 0:02:24.5]} 6. dxc5 {[%clk 0:02:44.2]} 6... Na6 {[%clk
0:02:14.7]} 7. e3 {[%clk 0:02:42.1]} 7... Nxc5 {[%clk 0:02:12.8]} 8. a3 {[%clk
0:02:42]} 8... Bxd2+ {[%clk 0:02:12]} 9. Bxd2 {[%clk 0:02:41.3]} 9... b6 {[%clk
0:02:09.7]} 10. b4 {[%clk 0:02:41]} 10... Nce4 {[%clk 0:02:09.5]} 11. Bc1 {[%clk
0:02:36.7]} 11... Bb7 {[%clk 0:02:09.2]} 12. Bb2 {[%clk 0:02:36.8]} 12... d5
{[%clk 0:02:08.8]} 13. Rd1 {[%clk 0:02:25.3]} 13... Rc8 {[%clk 0:02:01.1]} 14.
Qb3 {[%clk 0:02:25.2]} 14... Qc7 {[%clk 0:01:47]} 15. Rc1 {[%clk 0:02:16.6]}
15... dxc4 {[%clk 0:01:25.1]} 16. Bxc4 {[%clk 0:02:09.3]} 16... b5 {[%clk
0:01:00.1]} 17. Be2 {[%clk 0:01:52.9]} 17... Qxc1+ {[%clk 0:00:59.5]} 18. Bxc1
{[%clk 0:01:52]} 18... Rxc1+ {[%clk 0:01:00.4]} 19. Bd1 {[%clk 0:01:52.4]} 19...
Nc3 {[%clk 0:00:23.1]} 20. O-O {[%clk 0:01:47.8]} 20... Nxd1 {[%clk 0:00:22.3]}
21. Rxd1 {[%clk 0:01:47]} 21... Bd5 {[%clk 0:00:22.3]} 22. Qxd5 {[%clk
0:01:37.6]} 22... Nxd5 {[%clk 0:00:20.9]} 23. Rxc1 {[%clk 0:01:37.4]} 23... Nb6
{[%clk 0:00:21]} 24. Rc7 {[%clk 0:01:34.4]} 24... Rc8 {[%clk 0:00:18.5]} 25.
Rxc8+ {[%clk 0:01:27.2]} 25... Nxc8 {[%clk 0:00:19.4]} 26. Nd4 {[%clk
0:01:26.9]} 26... Nd6 {[%clk 0:00:20]} 27. Kf1 {[%clk 0:01:24.8]} 27... a6
{[%clk 0:00:20.1]} 28. Nc6 {[%clk 0:01:24.9]} 28... Nc4 {[%clk 0:00:20]} 29.
Ne7+ {[%clk 0:01:19.8]} 29... Kf8 {[%clk 0:00:19.4]} 30. Nc6 {[%clk 0:01:20.1]}
30... Nxa3 {[%clk 0:00:19.9]} 31. Nb8 {[%clk 0:01:20.3]} 31... Nc2 {[%clk
0:00:15.2]} 32. Nxa6 {[%clk 0:01:20.1]} 32... Ke7 {[%clk 0:00:15.6]} 33. Ke2
{[%clk 0:01:19.7]} 33... Kd6 {[%clk 0:00:16.1]} 34. Kd2 {[%clk 0:01:17.3]} 34...
Na3 {[%clk 0:00:16.6]} 35. Kc3 {[%clk 0:01:15.2]} 35... Nc4 {[%clk 0:00:16.5]}
36. Nc5 {[%clk 0:01:08.2]} 36... Kc6 {[%clk 0:00:16.3]} 37. Nd3 {[%clk
0:01:06.5]} 37... e5 {[%clk 0:00:15.9]} 38. f3 {[%clk 0:01:06.4]} 38... f5
{[%clk 0:00:15.4]} 39. Nc5 {[%clk 0:01:05.8]} 39... Kd5 {[%clk 0:00:15.1]} 40.
Kd3 {[%clk 0:01:00]} 40... e4+ {[%clk 0:00:14.1]} 41. fxe4+ {[%clk 0:00:59.4]}
41... fxe4+ {[%clk 0:00:15]} 42. Kc3 {[%clk 0:00:54.2]} 42... Nxe3 {[%clk
0:00:14.6]} 43. Nd7 {[%clk 0:00:53.2]} 43... Nxg2 {[%clk 0:00:13.7]} 0-1

[Event "*** SCC Grand Prix: Titled Tuesday Blitz"]
[Site "Chess.com"]
[Date "2020.07.07"]
[Round "2"]
[White "colegiodemadrid"]
[Black "Sofiia_Hryzlova"]
[Result "1-0"]
[WhiteElo "2416"]
[BlackElo "2143"]
[TimeControl "180+1"]
[EndTime "10:18:01 PDT"]
[Termination "colegiodemadrid won on time"]

1. d4 {[%clk 0:03:00.9]} 1... Nf6 {[%clk 0:02:58.1]} 2. c4 {[%clk 0:03:00.4]}
2... e6 {[%clk 0:02:58]} 3. Nc3 {[%clk 0:03:00.4]} 3... Bb4 {[%clk 0:02:57.3]}
4. Qc2 {[%clk 0:03:00.5]} 4... O-O {[%clk 0:02:56]} 5. e4 {[%clk 0:02:59.5]}
5... Bxc3+ {[%clk 0:02:52.2]} 6. bxc3 {[%clk 0:02:58.9]} 6... d6 {[%clk
0:02:52]} 7. Bd3 {[%clk 0:02:57.6]} 7... Nbd7 {[%clk 0:02:38.1]} 8. Ne2 {[%clk
0:02:57.5]} 8... c5 {[%clk 0:02:37.7]} 9. O-O {[%clk 0:02:57.3]} 9... h6 {[%clk
0:02:28.5]} 10. f4 {[%clk 0:02:53]} 10... b6 {[%clk 0:02:16.8]} 11. e5 {[%clk
0:02:50.5]} 11... Ne8 {[%clk 0:02:14.8]} 12. Ng3 {[%clk 0:02:46.1]} 12... cxd4
{[%clk 0:02:02.9]} 13. cxd4 {[%clk 0:02:44.5]} 13... Ba6 {[%clk 0:02:02.1]} 14.
Bb2 {[%clk 0:02:33.1]} 14... Rc8 {[%clk 0:01:35.3]} 15. Qe2 {[%clk 0:02:32.8]}
15... g6 {[%clk 0:01:23.4]} 16. f5 {[%clk 0:02:22.7]} 16... exf5 {[%clk
0:01:10.8]} 17. Nxf5 {[%clk 0:02:03.3]} 17... gxf5 {[%clk 0:00:55.4]} 18. Rxf5
{[%clk 0:02:04.2]} 18... Ng7 {[%clk 0:00:53.6]} 19. Rf4 {[%clk 0:01:48.1]} 19...
h5 {[%clk 0:00:42.1]} 20. Qe4 {[%clk 0:01:38.6]} 20... f5 {[%clk 0:00:33.8]} 21.
exf6 {[%clk 0:01:37.6]} 21... Nxf6 {[%clk 0:00:33.2]} 22. Rxf6 {[%clk
0:01:22.6]} 22... Rxf6 {[%clk 0:00:29.1]} 23. Qh7+ {[%clk 0:01:22.5]} 23... Kf7
{[%clk 0:00:27.7]} 24. d5 {[%clk 0:01:23.4]} 24... Bxc4 {[%clk 0:00:21.7]} 25.
Bxf6 {[%clk 0:01:21]} 25... Qxf6 {[%clk 0:00:16.5]} 26. Rf1 {[%clk 0:01:19.7]}
26... Bxd3 {[%clk 0:00:13.4]} 27. Qxd3 {[%clk 0:01:20.6]} 27... Rc5 {[%clk
0:00:04.8]} 28. Rxf6+ {[%clk 0:00:57.5]} 28... Kxf6 {[%clk 0:00:05.7]} 29. Qd4+
{[%clk 0:00:57.6]} 29... Kg6 {[%clk 0:00:05]} 30. Qe4+ {[%clk 0:00:56]} 30...
Nf5 {[%clk 0:00:04.5]} 31. Qe6+ {[%clk 0:00:54.7]} 31... Kg5 {[%clk 0:00:04.8]}
32. h4+ {[%clk 0:00:53]} 32... Nxh4 {[%clk 0:00:04.3]} 33. Qxd6 {[%clk
0:00:43.7]} 33... Rc1+ {[%clk 0:00:04]} 34. Kh2 {[%clk 0:00:40.3]} 34... Rc2
{[%clk 0:00:03.6]} 35. Qg3+ {[%clk 0:00:40.1]} 1-0

[Event "*** SCC Grand Prix: Titled Tuesday Blitz"]
[Site "Chess.com"]
[Date "2020.07.07"]
[Round "2"]
[White "chessplayer9919"]
[Black "PlotnikovPavel"]
[Result "0-1"]
[WhiteElo "2655"]
[BlackElo "2485"]
[TimeControl "180+1"]
[EndTime "10:18:03 PDT"]
[Termination "PlotnikovPavel won by resignation"]

1. d4 {[%clk 0:03:00.9]} 1... e6 {[%clk 0:03:00.1]} 2. c4 {[%clk 0:03:00.6]}
2... f5 {[%clk 0:03:00.3]} 3. Nc3 {[%clk 0:03:00.2]} 3... Nf6 {[%clk 0:03:00.4]}
4. Nf3 {[%clk 0:02:59.6]} 4... b6 {[%clk 0:03:00.4]} 5. g3 {[%clk 0:02:59.5]}
5... Bb7 {[%clk 0:03:00.6]} 6. Bg2 {[%clk 0:02:59.6]} 6... Bb4 {[%clk
0:03:00.6]} 7. O-O {[%clk 0:02:59.5]} 7... O-O {[%clk 0:03:00.7]} 8. d5 {[%clk
0:02:55.1]} 8... Bxc3 {[%clk 0:02:49.6]} 9. bxc3 {[%clk 0:02:50.5]} 9... exd5
{[%clk 0:02:37.5]} 10. Nh4 {[%clk 0:02:49.5]} 10... Ne4 {[%clk 0:02:30]} 11.
cxd5 {[%clk 0:02:34.8]} 11... Nxc3 {[%clk 0:01:58.7]} 12. Qd3 {[%clk 0:02:15.5]}
12... Ne4 {[%clk 0:01:41.9]} 13. Bxe4 {[%clk 0:01:52]} 13... fxe4 {[%clk
0:01:41]} 14. Qxe4 {[%clk 0:01:52.9]} 14... d6 {[%clk 0:01:38.4]} 15. Bb2 {[%clk
0:01:52.2]} 15... Nd7 {[%clk 0:01:35.4]} 16. Qe6+ {[%clk 0:01:03.9]} 16... Rf7
{[%clk 0:01:18.6]} 17. Nf3 {[%clk 0:00:58.6]} 17... Nc5 {[%clk 0:01:16.7]} 18.
Qh3 {[%clk 0:00:57.1]} 18... Bxd5 {[%clk 0:01:04.9]} 19. Ng5 {[%clk 0:00:56.3]}
19... Qxg5 {[%clk 0:01:01.5]} 20. Rad1 {[%clk 0:00:53.3]} 20... Bb7 {[%clk
0:00:58.9]} 21. Rd4 {[%clk 0:00:51.8]} 21... Re8 {[%clk 0:00:56.6]} 22. Rg4
{[%clk 0:00:47.3]} 22... Qd5 {[%clk 0:00:52.8]} 23. f3 {[%clk 0:00:44.9]} 23...
Bc8 {[%clk 0:00:52.2]} 24. Rxg7+ {[%clk 0:00:06.1]} 24... Rxg7 {[%clk
0:00:51.3]} 25. Qh6 {[%clk 0:00:07]} 25... Rg6 {[%clk 0:00:45.5]} 26. Qc1 {[%clk
0:00:07.1]} 26... Rxe2 {[%clk 0:00:42.1]} 27. Qc3 {[%clk 0:00:06.7]} 27... Re5
{[%clk 0:00:36.6]} 28. Qc2 {[%clk 0:00:04.8]} 28... Bb7 {[%clk 0:00:34.8]} 29.
Bxe5 {[%clk 0:00:03.9]} 29... Qxe5 {[%clk 0:00:34.5]} 30. Qd2 {[%clk 0:00:03.4]}
30... Re6 {[%clk 0:00:32.6]} 31. h4 {[%clk 0:00:02.7]} 31... Qe3+ {[%clk
0:00:32.5]} 0-1

[Event "*** SCC Grand Prix: Titled Tuesday Blitz"]
[Site "Chess.com"]
[Date "2020.07.07"]
[Round "2"]
[White "Na_binci"]
[Black "Susal_De_Silva"]
[Result "1-0"]
[WhiteElo "2177"]
[BlackElo "2367"]
[TimeControl "180+1"]
[EndTime "10:18:03 PDT"]
[Termination "Na_binci won by resignation"]

1. d4 {[%clk 0:02:59.5]} 1... f6 {[%clk 0:02:59.1]} 2. c4 {[%clk 0:02:57.9]}
2... g6 {[%clk 0:02:58.9]} 3. Nc3 {[%clk 0:02:57.1]} 3... Bg7 {[%clk 0:02:59.4]}
4. h4 {[%clk 0:02:56.9]} 4... h5 {[%clk 0:02:57.8]} 5. Qc2 {[%clk 0:02:54.3]}
5... f5 {[%clk 0:02:54.3]} 6. e4 {[%clk 0:02:53]} 6... d6 {[%clk 0:02:53.1]} 7.
Be3 {[%clk 0:02:48.5]} 7... Nc6 {[%clk 0:02:52.1]} 8. O-O-O {[%clk 0:02:43]}
8... Nh6 {[%clk 0:02:47.8]} 9. Nf3 {[%clk 0:02:40]} 9... Ng4 {[%clk 0:02:46.2]}
10. Ng5 {[%clk 0:02:38.8]} 10... O-O {[%clk 0:02:41.2]} 11. d5 {[%clk
0:02:28.5]} 11... Nce5 {[%clk 0:02:38.8]} 12. Bd4 {[%clk 0:02:22.9]} 12... f4
{[%clk 0:02:36]} 13. f3 {[%clk 0:01:59.1]} 13... Nh6 {[%clk 0:02:34.9]} 14. Be2
{[%clk 0:01:43.3]} 14... a6 {[%clk 0:02:32.7]} 15. Kb1 {[%clk 0:01:42.2]} 15...
Bd7 {[%clk 0:02:32.3]} 16. Rhg1 {[%clk 0:01:33.5]} 16... Rb8 {[%clk 0:02:22.3]}
17. g3 {[%clk 0:01:25.7]} 17... fxg3 {[%clk 0:02:17.3]} 18. Rxg3 {[%clk
0:01:26.6]} 18... b5 {[%clk 0:02:17.1]} 19. c5 {[%clk 0:01:25.4]} 19... b4
{[%clk 0:02:16.2]} 20. Na4 {[%clk 0:01:18]} 20... Rf4 {[%clk 0:01:41]} 21. c6
{[%clk 0:01:13.6]} 21... Bc8 {[%clk 0:01:40.6]} 22. Rh1 {[%clk 0:00:49.3]} 22...
Qe8 {[%clk 0:01:40.3]} 23. Be3 {[%clk 0:00:45.8]} 23... Rf8 {[%clk 0:01:38.2]}
24. Rhg1 {[%clk 0:00:40.1]} 24... e6 {[%clk 0:01:31.9]} 25. Nxe6 {[%clk
0:00:30.8]} 25... Bxe6 {[%clk 0:01:31.9]} 26. dxe6 {[%clk 0:00:30.4]} 26... Qxe6
{[%clk 0:01:31.3]} 27. f4 {[%clk 0:00:30.4]} 27... Nhf7 {[%clk 0:00:53.5]} 28.
fxe5 {[%clk 0:00:21]} 28... Nxe5 {[%clk 0:00:52.9]} 29. Rxg6 {[%clk 0:00:16.1]}
29... Qh3 {[%clk 0:00:44.8]} 30. Rxg7+ {[%clk 0:00:15.5]} 30... Kh8 {[%clk
0:00:45.7]} 31. Bd4 {[%clk 0:00:13.7]} 31... Qh2 {[%clk 0:00:39.9]} 32. Qd2
{[%clk 0:00:12.6]} 32... Rf4 {[%clk 0:00:37.6]} 33. Bxe5 {[%clk 0:00:11.9]}
33... dxe5 {[%clk 0:00:38.5]} 34. Qd7 {[%clk 0:00:11.5]} 1-0

[Event "*** SCC Grand Prix: Titled Tuesday Blitz"]
[Site "Chess.com"]
[Date "2020.07.07"]
[Round "2"]
[White "BJthechessgod"]
[Black "Riptide27"]
[Result "1-0"]
[WhiteElo "2316"]
[BlackElo "2518"]
[TimeControl "180+1"]
[EndTime "10:18:07 PDT"]
[Termination "BJthechessgod won by resignation"]

1. e4 {[%clk 0:03:00.2]} 1... c5 {[%clk 0:02:58.9]} 2. Nf3 {[%clk 0:03:01.1]}
2... d6 {[%clk 0:02:58.2]} 3. d3 {[%clk 0:03:00.8]} 3... Nc6 {[%clk 0:02:56.2]}
4. Nc3 {[%clk 0:03:00.2]} 4... g6 {[%clk 0:02:56.2]} 5. Be3 {[%clk 0:03:00.4]}
5... Bg7 {[%clk 0:02:56.1]} 6. Be2 {[%clk 0:03:00.6]} 6... Nf6 {[%clk
0:02:55.6]} 7. Qd2 {[%clk 0:03:00.8]} 7... Ng4 {[%clk 0:02:53.2]} 8. Bf4 {[%clk
0:03:00.9]} 8... h6 {[%clk 0:02:29]} 9. h3 {[%clk 0:02:58.6]} 9... Nge5 {[%clk
0:02:28.3]} 10. Nxe5 {[%clk 0:02:58.6]} 10... dxe5 {[%clk 0:02:29.2]} 11. Be3
{[%clk 0:02:58.1]} 11... b6 {[%clk 0:02:28.3]} 12. Bg4 {[%clk 0:02:54]} 12... e6
{[%clk 0:02:26.1]} 13. g3 {[%clk 0:02:47.1]} 13... Bb7 {[%clk 0:02:24.7]} 14.
O-O-O {[%clk 0:02:42.4]} 14... Qe7 {[%clk 0:02:18]} 15. h4 {[%clk 0:02:41.3]}
15... O-O-O {[%clk 0:02:13.9]} 16. h5 {[%clk 0:02:40.5]} 16... g5 {[%clk
0:02:12.3]} 17. f4 {[%clk 0:02:10]} 17... gxf4 {[%clk 0:02:11.7]} 18. gxf4
{[%clk 0:02:10.9]} 18... Kb8 {[%clk 0:02:12]} 19. f5 {[%clk 0:02:09.4]} 19...
Bf6 {[%clk 0:02:07.7]} 20. fxe6 {[%clk 0:02:08.9]} 20... fxe6 {[%clk 0:02:07.3]}
21. Rdf1 {[%clk 0:02:02.3]} 21... Rdg8 {[%clk 0:02:04.5]} 22. Rhg1 {[%clk
0:01:56.9]} 22... Bg5 {[%clk 0:02:04.3]} 23. Bxg5 {[%clk 0:01:44.6]} 23... Rxg5
{[%clk 0:02:05.2]} 24. Bd1 {[%clk 0:01:43.2]} 24... Rhg8 {[%clk 0:02:02.1]} 25.
Rxg5 {[%clk 0:01:38.3]} 25... Rxg5 {[%clk 0:02:01.5]} 26. Qf2 {[%clk 0:01:35.6]}
26... Nd4 {[%clk 0:01:40.3]} 27. Qf6 {[%clk 0:01:29.9]} 27... Qxf6 {[%clk
0:01:35.5]} 28. Rxf6 {[%clk 0:01:30.8]} 28... Rg1 {[%clk 0:01:30.8]} 29. Rxh6
{[%clk 0:01:29.6]} 29... b5 {[%clk 0:01:30.7]} 30. Kd2 {[%clk 0:01:17.3]} 30...
Rg2+ {[%clk 0:01:15.5]} 31. Ne2 {[%clk 0:01:16.8]} 31... Nf3+ {[%clk 0:01:11.8]}
32. Ke3 {[%clk 0:01:15.6]} 32... Nd4 {[%clk 0:01:08]} 33. Nxd4 {[%clk 0:01:10]}
33... exd4+ {[%clk 0:01:03.4]} 34. Kf4 {[%clk 0:01:08.5]} 34... Rd2 {[%clk
0:01:01]} 35. Bg4 {[%clk 0:01:08.4]} 35... Rxc2 {[%clk 0:01:00.5]} 36. Rxe6
{[%clk 0:01:05.1]} 36... c4 {[%clk 0:00:57.2]} 37. Rd6 {[%clk 0:00:50.5]} 37...
c3 {[%clk 0:00:55.9]} 38. bxc3 {[%clk 0:00:29.8]} 38... dxc3 {[%clk 0:00:56.8]}
39. h6 {[%clk 0:00:23]} 39... Rh2 {[%clk 0:00:55.5]} 40. Bd1 {[%clk 0:00:22.6]}
40... c2 {[%clk 0:00:52.2]} 41. Bxc2 {[%clk 0:00:22.4]} 41... Rxc2 {[%clk
0:00:53.1]} 42. h7 {[%clk 0:00:23.3]} 42... Rf2+ {[%clk 0:00:45.8]} 43. Kg5
{[%clk 0:00:23.1]} 43... Rf8 {[%clk 0:00:42.2]} 44. Rg6 {[%clk 0:00:21.4]} 1-0